Cogmind - Beta 15 @@@ ROGUE MODE // 2025.09.21 @ 14:55:38 Player: unq Result: Destroyed by F9-Z13(R) with Subdweller Machine Gun Performance ------------- Evolutions (0) 0 Regions Visited (2) 400 Robots Destroyed (34) 170 Value Destroyed (687) 687 Prototype IDs (2) 40 Alien Tech Used (0) 0 Bonus (0) 0 TOTAL SCORE: 1297 Bonus ------- None Cogmind --------- Core Integrity 0/250 Matter 265/300 Energy 200/200 System Corruption 0% Temperature Cool (0) Movement Treading (240) Ox1 Location -10/Subcaves Parts ------- > --- POWER (1) -------- Subdweller Power Source > --- PROPULSION (2) --- Light Treads > --- UTILITY (2) ------ Large Storage Unit Core Shielding > --- WEAPON (2) ------- Subdweller Machine Gun Subdweller Shrapnel Launcher > --- INVENTORY (15) --- Subdweller Monowheel Seismic Detector Seismic Detector Light Armor Plating Hacking Suite Makeshift System Shield Riot Gun Medium Laser Subdweller Laser Subdweller Beam Cannon Subdweller Beam Cannon Subdweller Machine Gun Subdweller Machine Gun Battle Cannon Ripper Peak State ------------ > --- POWER ------------ Subdweller Power Source > --- PROPULSION ------- Light Treads Light Treads > --- UTILITY ---------- Large Storage Unit Seismic Detector > --- WEAPON ----------- Subdweller Machine Gun Subdweller Machine Gun > --- INVENTORY -------- Subdweller Monowheel Seismic Detector Core Shielding Light Armor Plating Hacking Suite Makeshift System Shield Riot Gun Medium Laser Subdweller Beam Cannon Subdweller Beam Cannon Subdweller Machine Gun Battle Cannon Subdweller Shrapnel Launcher Ripper [Rating: 13] Favorites ----------- Power Ion Engine Engine Ion Engine Propulsion Light Treads Treads Light Treads Leg Aluminum Leg Utility Large Storage Unit Device Seismic Detector Storage Large Storage Unit Protection Light Armor Plating Weapon Medium Laser Energy Gun Medium Laser Energy Cannon Subdweller Beam Cannon Ballistic Gun Assault Rifle Launcher Subdweller Shrapnel Launcher Special Weapon Mining Laser Slashing Weapon Ripper Build | -11 -10 -10 ------- Run | Yrd Mat Sub Slots Evolved . | . . . Power . | . . . Propulsion . | . . . Utility . | . . . Weapon . | . . . Parts Attached 30 | 7 13 10 Power 3 | 1 1 1 Engine 3 | 1 1 1 Core . | . . . Reactor . | . . . Propulsion 6 | 2 3 1 Treads 4 | . 3 1 Leg 2 | 2 . . Wheel . | . . . Hover . | . . . Flight . | . . . Utility 9 | 2 4 3 Device 2 | 1 1 . Storage 3 | 1 2 . Processor . | . . . Hackware . | . . . Protection 4 | . 1 3 Artifact . | . . . Weapon 12 | 2 5 5 Energy Gun 2 | 1 1 . Energy Cannon 1 | . . 1 Ballistic Gun 6 | 1 3 2 Ballistic Cannon . | . . . Launcher 1 | . . 1 Special Weapon 1 | . 1 . Impact Weapon . | . . . Slashing Weapon 1 | . . 1 Piercing Weapon . | . . . Special Melee Weapon . | . . . Unidentified Prototypes . | . . . Parts Lost 8 | . 3 5 Power 1 | . . 1 Propulsion 3 | . 1 2 Utility 1 | . . 1 Weapon 3 | . 2 1 Highest Loss Streak 3 | . 2 3 To Critical Strikes . | . . . Average Backups 12 | 3 12 14 Power . | . . . Propulsion 1 | 2 1 1 Utility 5 | . 5 5 Weapon 5 | . 4 6 Tool/Special . | . . . Unused Backups 21 | 1 3 17 Power 1 | . . 1 Propulsion 3 | 1 . 2 Utility 4 | . 1 3 Weapon 12 | . 1 11 Tool/Special 1 | . 1 . Average Slot Usage (%) 99 | . 99 99 Engine 13 | . 14 13 Treads 25 | . 23 27 Leg 1 | . 3 . Device 11 | . 11 12 Storage 14 | . 14 14 Protection 2 | . 2 1 Energy Gun 9 | . 11 7 Ballistic Gun 17 | . 16 19 Peak Build Rating 13 | 7 8 13 Average Rating 8 | 5 7 10 On Entrance 5 | . 7 8 Naked Turns . | . . . Heaviest Build 38 | 15 32 38 Greatest Support 40 | 20 40 40 Greatest Overweight (x) 1 | . 1 1 Average Overweight (x) . | . . . Largest Inventory Capacity 15 | 8 15 15 Average Capacity 13 | 5 13 15 Most Carried 15 | 6 15 15 Average Carried 12 | 3 12 13 Final Capacity 15 | 8 15 15 Final Carried 15 | 5 15 15 Class Distribution -------------------- 99% | Mutant Dominant Class ---------------- Mutant | -10/Materials Mutant | -10/Subcaves Resources | -11 -10 -10 ----------- Run | Yrd Mat Sub Matter Collected 987 | 306 453 228 Remotely . | . . . Salvage Created 1205 | 125 954 126 Parts 69 | 5 54 10 Haulers Intercepted 2 | . 2 . Recyclers Shooed 6 | 1 5 . Parts Field Recycled . | . . . Retrieved Matter . | . . . Parts Self-Destructed 1 | . . 1 Prevented . | . . . Kills | -11 -10 -10 ------- Run | Yrd Mat Sub Combat Hostiles Destroyed 22 | . 16 6 Guns 20 | . 16 4 AOE 2 | . . 2 Classes Destroyed 8 | 2 5 1 Worker 1 | . 1 . Tunneler 2 | 2 . . Hauler 2 | . 2 . Recycler 5 | 1 4 . Watcher 2 | . 2 . Swarmer 8 | . 6 2 Grunt 10 | . 10 . Subdweller 4 | . . 4 Best Kill Streak 4 | 2 4 2 Combat Bots Only 3 | . 3 2 Max Kills in Single Turn 2 | 1 2 2 Gunslinging 1 | . 1 . Exploded 2 | . . 2 Melee . | . . . Uniques/NPCs Destroyed . | . . . Combat | -11 -10 -10 -------- Run | Yrd Mat Sub Hostile Shots Fired 159 | . 97 62 Missed 43 | . 25 18 Hits 116 | . 72 44 Projectile 116 | . 72 44 Critical Strikes 2 | . . 2 Damage Taken 1706 | . 790 916 Core 255 | . 127 128 Absorbed by Shields . | . . . Redirected to Shielding 10 | . . 10 Regen/Repaired (Parts) 185 | . 185 . Core Remaining (%) 100 | 100 . . Volleys Fired 121 | 12 84 25 Largest 2 | 2 2 2 Hottest 100 | 70 100 100 Shots Fired 236 | 24 165 47 Gun 225 | 24 162 39 Cannon 7 | . . 7 Launcher 1 | . . 1 Special 3 | . 3 . Kinetic 157 | 12 110 35 Thermal 70 | 12 46 12 Explosive . | . . . Electromagnetic 9 | . 9 . Robot Hit Streak 18 | 10 14 18 Robot Miss Streak 5 | 1 5 2 Penetration Max . | . . . Secondary Targets 4 | . 3 1 Max Gunslinging Chain 1 | . 1 1 Shots Hit Robots 161 | 19 107 35 Core Hits 60 | 4 46 10 Critical Kills . | . . . Critical Parts Destroyed . | . . . Critical Strikes 2 | 1 1 . Burn 2 | 1 1 . Melee Attacks 1 | . . 1 Impact . | . . . Slashing 1 | . . 1 Piercing . | . . . Sneak Attacks . | . . . Combat Hostiles . | . . . Follow-up Attacks . | . . . Damage Inflicted 2360 | 240 1333 787 Guns 2054 | 240 1220 594 Cannons 132 | . . 132 Explosions 172 | . 111 61 Melee . | . . . Ramming 2 | . 2 . Kinetic 1569 | 128 811 630 Thermal 668 | 112 399 157 Explosive . | . . . Electromagnetic 121 | . 121 . Impact . | . . . Slashing . | . . . Piercing . | . . . Highest Corruption . | . . . Average Corruption . | . . . Corruption Purged . | . . . Corruption Blocked . | . . . Overload Shots . | . . . Overflow Damage . | . . . Projectiles . | . . . Explosions . | . . . Melee . | . . . Knockbacks . | . . . Impact . | . . . Kinetic . | . . . Secondary . | . . . Self-Inflicted Damage 61 | . 35 26 Shots 2 | . 1 1 Rammed 1 | . 1 . Targets Rammed 1 | . 1 . Kicked . | . . . Crushed . | . . . Highest Temperature 156 | 54 156 7 Average Temperature 32 | 22 35 3 Received Heat Transfer 453 | . 297 156 Siege Activations . | . . . Martial Activations . | . . . Shielding Activations . | . . . Robots Disrupted . | . . . Combat Hostiles . | . . . Robots Corrupted . | . . . Combat Hostiles . | . . . Parts Fried . | . . . Impact Corruptions . | . . . Robots Melted . | . . . Combat Hostiles . | . . . Parts Melted 2 | 1 . 1 Heat Transferred 1791 | 407 1125 259 Parts Sabotaged . | . . . Parts Stolen . | . . . Parts Stripped . | . . . Power Chain Reactions 1 | . 1 . Alert | -11 -10 -10 ------- Run | Yrd Mat Sub Maximum Alert Level . | . . . Low Security (%) 100 | 100 100 . Level 1 . | . . . Level 2 . | . . . Level 3 . | . . . Level 4 . | . . . Level 5 . | . . . High Security . | . . . Max Security . | . . . Peak Influence 133 | 10 133 . Initial . | . . . Average 30 | 1 33 . Influence Increases 601 | 15 501 85 Destroy 0b10 Robot/C 360 | . 320 40 Destroy 0b10 Robot/NC 60 | 15 45 . Destroy Leader 68 | . 68 . Successful Hack 32 | . 32 . Destroy Structure 6 | . 6 . Lose Combat Pursuer 75 | . 30 45 Influence Decreases 530 | 15 454 61 Entered New Map 23 | . . 23 Time Decay 431 | 15 388 28 Lost Part 30 | . 20 10 Purge Threat 46 | . 46 . Squads Dispatched 2 | . 2 . Investigation 2 | . 2 . Extermination . | . . . Reinforcement . | . . . Assault . | . . . Garrison . | . . . Intercept . | . . . Searches Triggered . | . . . Construction Impeded . | . . . Haulers Reinforced . | . . . Active Scanning Responses . | . . . Cargo Convoy Interrupts . | . . . Stealth | -11 -10 -10 --------- Run | Yrd Mat Sub Distress Signals 1 | . 1 . Communications Jammed . | . . . Distress Signals . | . . . Times Spotted 39 | . 29 10 Peak Tracking Total 6 | . 5 6 Tactical Retreats 2 | . 1 1 Traps | -11 -10 -10 ------- Run | Yrd Mat Sub Traps Triggered 2 | . 2 . Indirectly . | . . . Trap Hack Attempts . | . . . Triggered . | . . . Disarmed . | . . . Reprogrammed . | . . . Reused . | . . . Traps Extracted . | . . . Installed . | . . . Triggered . | . . . Machines | -11 -10 -10 ---------- Run | Yrd Mat Sub Machines Disabled . | . . . Max in Single Turn . | . . . Machines Repaired . | . . . Machines Dismantled . | . . . Machines Sabotaged . | . . . Overloaded Fab Kills . | . . . Hacking | -11 -10 -10 --------- Run | Yrd Mat Sub Machines Accessed 10 | . 10 . Terminals 8 | . 8 . Fabricators . | . . . Repair Stations 1 | . 1 . Recycling Units 1 | . 1 . Scanalyzers . | . . . Garrison Access . | . . . Total Hacks 32 | . 32 . Successful 17 | . 17 . Failed 15 | . 15 . Catastrophic 4 | . 4 . Database Lockouts . | . . . Manual 17 | . 17 . Terminals 22 | . 22 . Fabricators . | . . . Repair Stations 7 | . 7 . Recycling Units 3 | . 3 . Scanalyzers . | . . . Garrison Access . | . . . Terminal Hacks 8 | . 8 . Part Schematic 1 | . 1 . Prototype ID Bank 1 | . 1 . Unreport Threat 1 | . 1 . Locate Traps 2 | . 2 . Hauler Manifests 2 | . 2 . Zone Layout 1 | . 1 . Fabricator Hacks . | . . . Repair Station Hacks 4 | . 4 . Scan Component 2 | . 2 . Repair 2 | . 2 . Recycling Unit Hacks 2 | . 2 . Retrieve Components 2 | . 2 . Scanalyzer . | . . . Garrison Access Hacks . | . . . Unauthorized Hacks 3 | . 3 . Terminals 3 | . 3 . Botnet 3 | . 3 . Fabricators . | . . . Repair Stations . | . . . Recycling Units . | . . . Scanalyzers . | . . . Garrison Access . | . . . Data Cores Recovered . | . . . Used . | . . . Hacking Detections 8 | . 8 . Full Trace Events 1 | . 1 . Feedback Events . | . . . Feedback Blocked . | . . . Robot Schematics Acquired . | . . . Robots Built . | . . . Authchips . | . . . Time . | . . . Total Robot Build Rating . | . . . Part Schematics Acquired 1 | . 1 . Parts Built . | . . . Authchips . | . . . Time . | . . . Total Part Build Rating . | . . . Parts Repaired 2 | . 2 . Time 52 | . 52 . Parts Recycled . | . . . Recycled Matter . | . . . Retrieved Matter . | . . . Retrieved Components 13 | . 13 . Parts Scanalyzed . | . . . Part Schematics Acquired . | . . . Parts Damaged . | . . . Bothacking | -11 -10 -10 ------------ Run | Yrd Mat Sub Used RIF Installer . | . . . Robots Hacked . | . . . Non-combat . | . . . Combat . | . . . Robot Hacks Applied . | . . . Relay Couplers Released . | . . . Fabnet Peak Effective % . | . . . Robots Rewired . | . . . Allies Hacked . | . . . Hacks Repelled . | . . . Allies | -11 -10 -10 -------- Run | Yrd Mat Sub Total Allies . | . . . Largest Group . | . . . Highest-Rated Group . | . . . Highest-Rated Ally . | . . . Total Orders . | . . . Ally Attacks . | . . . Total Damage . | . . . Kills . | . . . Allies Corrupted . | . . . Allies Melted . | . . . Intel | -11 -10 -10 ------- Run | Yrd Mat Sub Active Infowar (turns) 2557 | 85 1179 1293 Seismic 2557 | 85 1179 1293 Robot Analysis Total . | . . . Derelict Logs Recovered . | . . . Drone Launches . | . . . Drone Recoveries . | . . . Exploration | -11 -10 -10 ------------- Run | Yrd Mat Sub Turns Passed 3081 | 142 1439 1500 Spaces Moved 1554 | 78 681 795 Core 6 | 6 . . Treads 1409 | . 614 795 Legs 139 | 72 67 . Wheels . | . . . Hover . | . . . Flight . | . . . Fastest Speed 50 | 50 120 160 Average Speed 156 | 114 156 160 Slowest Speed 240 | 120 240 240 Overloaded Moves . | . . . Propulsion Burnouts . | . . . Robots Hopped . | . . . Potential Cave-ins . | . . . Cave-ins Triggered . | . . . Exploration Rate (%) 50 | 5 88 59 Regions Visited 2 Branch Regions 1 Pre-discovered Areas . | . . . Known Exits Taken . | . . . Unknown Exits Taken 2 | 1 1 . Scrap Searched 5 | . . 5 Spaces Dug 3 | . 3 . Terrain Destroyed 17 | . 5 12 Melee . | . . . Projectile 3 | . 3 . AOE 14 | . 2 12 Terrain Rammed . | . . . Walls Destroyed . | . . . Machines Disabled . | . . . Actions | -11 -10 -10 --------- Run | Yrd Mat Sub Total 1967 | 103 891 973 Wait 173 | . 64 109 Move 1552 | 77 680 795 Hop . | . . . Pick Up 43 | 6 21 16 Fast Attach 11 | 7 4 . Attach 8 | . 4 4 Detach 2 | . 2 . Swap 29 | . 18 11 Drop 26 | 1 13 12 Fire 121 | 12 84 25 Melee 1 | . . 1 Ram . | . . . Kick . | . . . Crush 1 | . 1 . Escape Stasis . | . . . Rewire . | . . . Trap . | . . . Miscellaneous . | . . . Route ------- -11/Scrapyard -10/Materials (discovered 5 exits: [*Mat x3] / [*Min] / [*Sub]) -10/Subcaves (discovered 1 exit: [*Mat]) History --------- Turn | Location | Event 6 | -11/Scrapyard | Discovered new exit (range 15) 143 | -11/Scrapyard | Entered Materials 316 | -10/Materials | Build established: Mutant 482 | -10/Materials | Discovered new exit (range 9) 963 | -10/Materials | Discovered new exit (range 5) 1011 | -10/Materials | Discovered new exit (range 5) 1253 | -10/Materials | Repaired Assault Rifle 1280 | -10/Materials | Repaired Lgt. Treads 1359 | -10/Materials | Discovered new exit (range 14) 1467 | -10/Materials | Core integrity fell below 50% 1503 | -10/Materials | Discovered new exit (range 11) 1582 | -10/Materials | Entered Subcaves 1595 | -10/Subcaves | Shifting Twisted Machinery released Battle Cannon 1611 | -10/Subcaves | Shifting Twisted Machinery released Mak. System Restoration Module 1688 | -10/Subcaves | Shifting Twisted Machinery released Sub. Beam Cannon 1694 | -10/Subcaves | Shifting Twisted Machinery released Sub. Beam Cannon 2049 | -10/Subcaves | Discovered new exit (range 12) 2050 | -10/Subcaves | Shifting Twisted Machinery released Sub. Machine Gun 2067 | -10/Subcaves | Shifting Twisted Machinery released Ripper 2451 | -10/Subcaves | Core integrity fell below 20% 2495 | -10/Subcaves | Lost 3 parts (1n1u1w) 3076 | -10/Subcaves | Disturbed a concealed Subdweller 3082 | -10/Subcaves | Destroyed by F9-Z13(R) with Subdweller Machine Gun Last Messages --------------- 02851_ Acquired 60 matter. 02852_ Searching scrap... 02852_ Found Sub. Laser. 02852_ Found 59 Matter. 02853_ Acquired 1 matter. 02854_ Dropped Med. Laser. 02857_ Acquired Riot Gun. 02871_ Searching scrap... 02871_ Found Battle Cannon. 02871_ Found Mak. System Shield. 02871_ Found 46 Matter. 02873_ Subatomizers dissect the Battle Cannon. 02874_ Acquired Mak. System Shield. 02877_ Acquired Battle Cannon. 02891_ Acquired Med. Laser. 02893_ Acquired Sub. Laser. 03072_ Lgt. Treads destroyed. 03074_ S-10 Pest destroyed. 03076_ F9-Z13(R) angrily emerges from the Twisted Machinery. [Achievement: Back For More] Map ----- +----------------------------------------------------+ | ## #???##" #??###### | | # ##????## #### ## | | ### #??????## ## | | ??## ## #???## | | ???## ### #????# # ## | | ????### #?### ##????# ##### | | ??????########???# ##?????#### ##?## | | ?????????????????# ####??????#### #### | | ?????????????????## ##????????##"" | | ??????????????????## #?????????# "" | | ???????????????????## #?????????# "" ## | | ????????????????????# #?????????# ####? | | ????????????????????? ##????? ??# #???? | | ?????????????????????###????? # ### #??? | | ????????????????????????????? ## #??# #??? | | ???????????????????????????? "?##??# ##??? | | ??????????????????????????## ##?????## #???? | | ?????????????????????#####[% #??????## #???? | | ????????????????????## # *%= #????????##""#???? | | ???????????????????## &][ ##?????????# #???? | | ????????????????#### &%& #?????????# #???? | | ????????????# $?# & * #??????????## #???? | | ????????????# &<##< #?????????????##???? | | ?????????????# & R ???????????????#####?? | | ?????????????????# s #########?????????## #?? | | ?????????????????# s @ ## ##????????# ##? | | ?????????????????### ##???????# ## | | ??????????????????# #???????# # | | ??????????????????# #??????# | | ??????????????????# #### #######????# | | ??????????????????# ##?# #### #???## | | ??????????????????## ### #???# # | | ???????????????????# ##### # | | ???????????????????# | | ??????????????????# | | ??????????????????# ### | | ??????????????????# #?# ###### | | ??????????????????# #?## #???# | | ??????????????????# ##??# ??## | | ??????????????????# #??# #?# | | ??????????????????## #?# ###?## | | ???????????????????# #?# #????## | | ???????????????????# #?# #?????# | | ??????????????????? ##?## #### #?????# | | ?????????????????? ##???##????####????? | | ????????????????? ???????????????????# | | ?????????????????? ??????????????????? | | ??????????????????? ?????????????????? | | ????????????????????? ????????????????? | | ????????????????????????????????????????? | +----------------------------------------------------+ Best States ------------- Heat Dissipation 25 Energy Generation 15 Energy Capacity 250 Matter Stores 300 Matter Capacity 300 Sight Range 16 Terrain Scan Density 10 Armor Coverage 150 Core Shielding 20 Evasion (%) 55 Recoil Reduction 2 Item Schematics ----------------- Hcp. Storage Unit | -10/Materials | Hacked Robot Schematics ------------------ None Fabricated ------------ Nothing Repaired ---------- Assault Rifle | 16% | -10/Materials Lgt. Treads | 27% | -10/Materials Alien Tech Used ----------------- None Achievements -------------- Back For More Challenges ------------ None Game ------ Seed ChromionPitchforkObliterator Manual? 0 Play Time 00:41:55 Cumulative 143.5 hours Start 2025.09.21 @ 13:06:17 End 2025.09.21 @ 14:55:38 Sessions 3 Manual Loads 0 Difficulty Rogue Special Mode None Game No. 50 Rogue 50 Adventurer 0 Explorer 0 Win Type - Total 1 Types 1/0/0/0/0/0/0/0/0/0 Lore% 36 Gallery% 40 Achievement% 41 Wizard Run 0 Options --------- Layout 0 ASCII 1 Keyboard 1 Movement Arrows Keybinds 0 Fullscreen 1 Font 28/Smallcaps Map View 72x54 Zoom Use 0% Tactical HUD 1 Map Filters NONE Filters NONE Steam 1 RUN: 32bd4f9c-9d71-4781-8ba2-a7eea2d68d3d